bitfinex/quotes_ETHUSD_20250329
["timestamp","ask_amount","ask_price","bid_price","bid_amount"]
[1743237087756,3.33674772,1885.8,1885.7,5.30288]
[1743237087963,6.33674772,1885.8,1885.7,5.30288]
[1743237089060,3.72778302,1885.9,1885.8,5.85278]
[1743237089263,6.06,1886.1,1886.0,5.85222]
[1743237089580,3.33674772,1886.3,1886.2,5.85166]
[1743237089749,3.33674772,1886.3,1886.2,5.90467096]
[1743237089951,3.33674772,1886.3,1886.2,5.85166]
[1743237090194,6.33674772,1886.3,1886.2,5.85166]
[1743237090485,3.33674772,1886.3,1886.2,7.047]
[1743237091784,0.40707689,1886.4,1886.3,5.85138]
[1743237091956,3.0,1886.6,1886.5,5.30068]
[1743237092981,6.33674772,1886.6,1886.5,5.30068]
[1743237095288,6.72751601,1886.6,1886.5,5.30068]
[1743237095662,6.72751601,1886.6,1886.4,5.30094]
[1743237095865,3.33674772,1886.5,1886.3,5.30133]
[1743237096084,3.33674772,1886.4,1886.3,5.30133]
[1743237096457,4.10764772,1886.4,1886.3,5.30133]
[1743237096959,3.33674772,1886.4,1886.3,5.30133]
[1743237097169,3.33674772,1886.4,1886.3,6.481144]
[1743237097657,3.33674772,1886.4,1886.3,7.55965454]
[1743237099568,3.33674772,1886.5,1886.4,5.30101]
[1743237099883,3.33674772,1886.5,1886.4,5.85101]
[1743237100458,3.33674772,1886.5,1886.4,5.30101]
[1743237101789,3.39076829,1886.6,1886.5,5.30082]
[1743237101993,6.72751601,1886.6,1886.5,5.30082]
[1743237106703,6.72751601,1886.6,1886.5,5.85082]
[1743237106993,3.39076829,1886.6,1886.5,5.85082]
[1743237107194,6.72751601,1886.6,1886.5,5.85082]
[1743237107395,6.72751601,1886.6,1886.5,7.17432924]
[1743237110304,0.8324,1887.0,1886.9,5.29969]
[1743237110604,4.16914772,1887.0,1886.9,5.29969]
[1743237110765,7.16914772,1887.0,1886.9,5.29969]
[1743237112010,6.33674772,1887.0,1886.9,5.29969]
[1743237113603,6.73921376,1887.0,1886.9,6.3759084]
[1743237114205,6.73921376,1887.0,1886.9,8.09348724]
[1743237116227,0.40246604,1887.0,1886.9,8.09348724]
[1743237116382,6.8924,1887.4,1887.2,5.29873]
[1743237116715,6.33674772,1887.3,1887.2,5.29873]
[1743237117502,6.73180127,1887.3,1887.2,5.29873]
[1743237117901,6.73180127,1887.3,1887.2,6.358515]
[1743237118707,3.73180127,1887.3,1887.2,6.358515]
[1743237119006,6.73180127,1887.3,1887.2,6.358515]
[1743237119904,6.73180127,1887.3,1887.2,7.713615]
[1743237120278,3.39505355,1887.3,1887.2,7.713615]
[1743237120806,3.39505355,1887.3,1887.2,8.7518144]
[1743237121878,0.39505355,1887.3,1887.2,8.7518144]
[1743237122201,6.33674772,1887.4,1887.3,5.29857]
[1743237122416,3.33674772,1887.4,1887.3,7.25360844]
[1743237124083,3.33674772,1887.5,1887.4,5.84819]
[1743237124794,3.72866215,1887.5,1887.4,5.84819]
[1743237126217,3.33674772,1887.5,1887.4,5.84819]
[1743237128187,3.33674772,1887.6,1887.5,5.29791]
[1743237128388,3.33674772,1887.6,1887.5,5.882701]
[1743237132403,9.46044927,1887.7,1887.6,5.84773]
[1743237132605,6.73719699,1887.7,1887.6,5.84773]
[1743237132994,6.73719699,1887.7,1887.6,5.29773]
[1743237134927,6.73719699,1887.7,1887.5,6.95295864]
[1743237135250,3.33674772,1887.6,1887.5,6.95295864]
[1743237137521,3.40044927,1887.7,1887.5,6.95295864]
[1743237137522,6.73719699,1887.7,1887.5,6.95295864]
[1743237137832,6.73719699,1887.7,1887.6,5.99302586]
[1743237139846,6.73719699,1887.7,1887.6,6.54302586]
[1743237141646,3.73719699,1887.7,1887.6,6.54302586]
[1743237142948,3.73719699,1887.7,1887.6,1.24529586]
[1743237143130,3.73719699,1887.7,1887.6,6.54302586]
[1743237143448,6.73719699,1887.7,1887.6,6.54302586]
[1743237143744,3.7761,1887.6,1887.5,1.07030764]
[1743237143945,7.11284772,1887.6,1887.5,1.07030764]
[1743237144957,6.33674772,1887.6,1887.5,6.36831764]
[1743237145655,6.73719699,1887.7,1887.6,5.29773]
[1743237145957,6.33674772,1887.7,1887.6,0.55]
[1743237147039,6.73688788,1887.7,1887.6,0.55]
[1743237147233,6.73688788,1887.7,1887.6,5.84773]
[1743237147731,6.73688788,1887.7,1887.6,0.55]
[1743237153154,3.0,1887.6,1887.5,1.07030764]
[1743237153334,0.8123,1887.5,1887.2,10.59742]
[1743237153664,3.33674772,1887.4,1887.3,1.059742]
[1743237153833,3.33674772,1887.4,1887.3,0.55]
[1743237154237,6.33674772,1887.4,1887.1,28.7886]
[1743237154442,6.33674772,1887.2,1887.1,29.07663971]
[1743237157863,6.7397109,1887.2,1887.1,29.07663971]
[1743237160564,16.18760862,1887.2,1887.1,28.037]
[1743237160866,14.99948176,1887.2,1887.1,28.037]
[1743237161236,18.33622948,1887.2,1887.1,28.037]
[1743237162446,5.29913,1887.1,1887.0,1.04630716]
[1743237162651,12.17143,1887.1,1887.0,1.04630716]
[1743237164657,6.06,1887.1,1887.0,1.04630716]
[1743237165163,11.35913,1887.1,1887.0,1.04630716]
[1743237165674,6.06,1887.1,1887.0,1.04630716]
[1743237165982,9.39674772,1887.1,1887.0,1.04630716]
[1743237166679,3.0,1887.0,1886.8,0.7516]
[1743237166879,3.33674772,1886.9,1886.8,1.3016]
[1743237167679,3.33674772,1886.9,1886.8,8.32939837]
[1743237173384,3.33674772,1886.9,1886.8,7.66922837]
[1743237174249,11.63643772,1886.9,1886.8,1.06765837]
[1743237176288,6.33674772,1886.9,1886.8,1.06765837]
[1743237176881,11.63643772,1886.9,1886.8,1.06765837]
[1743237178066,11.63643772,1886.9,1886.6,28.045]
[1743237178273,3.33674772,1886.7,1886.6,28.045]
[1743237179189,3.33674772,1886.7,1886.6,29.09259779]
[1743237179396,12.42129772,1886.7,1886.6,29.09259779]
[1743237179692,7.12104772,1886.7,1886.6,29.09259779]
[1743237181572,14.19342149,1886.7,1886.6,28.045]
[1743237182282,14.64207858,1886.7,1886.6,28.045]
[1743237182495,3.0,1886.6,1886.3,6.34233539]
[1743237182817,6.33674772,1886.4,1886.3,7.65123539]
[1743237182964,6.33674772,1886.4,1886.3,8.94652393]
[1743237183659,6.33674772,1886.4,1886.3,8.94668393]
[1743237187705,6.53328709,1886.7,1886.3,8.94668393]
[1743237187706,3.33674772,1886.5,1886.4,5.85084]
[1743237187997,6.33674772,1886.5,1886.4,5.85084]
[1743237188175,6.33674772,1886.5,1886.4,7.27559239]
[1743237188375,0.40675709,1886.7,1886.5,5.30082]
[1743237188376,3.33674772,1886.6,1886.5,5.30082]
[1743237188577,3.33674772,1886.6,1886.5,6.05972]
[1743237194028,3.33674772,1886.6,1886.4,34.77679239]
[1743237194188,3.33674772,1886.6,1886.5,0.55]
[1743237195920,3.33674772,1886.6,1886.5,5.85082]
[1743237197627,3.33674772,1886.6,1886.5,0.55]
[1743237198306,3.33674772,1886.6,1886.5,5.85082]
[1743237200109,3.33674772,1886.6,1886.5,0.55]
[1743237200307,3.33674772,1886.6,1886.4,28.051]
[1743237200308,3.71044263,1886.6,1886.4,28.051]
[1743237200613,9.05452,1886.5,1886.4,28.051]
[1743237200818,3.7537,1886.5,1886.4,28.051]
[1743237201198,3.0,1886.5,1886.4,33.9021]
[1743237201510,3.0,1886.5,1886.4,38.14962154]
[1743237204121,6.33674772,1886.6,1886.5,5.85082]
[1743237204317,3.33674772,1886.6,1886.5,5.85082]
[1743237204489,0.4002014,1886.7,1886.6,5.85054]
[1743237204686,3.33674772,1886.8,1886.7,6.6033]
[1743237204886,8.05906458,1887.0,1886.8,5.29972]
[1743237205096,1.99906458,1886.9,1886.8,5.84972]
[1743237205792,1.99906458,1886.9,1886.8,5.90271577]
[1743237206101,1.99906458,1886.9,1886.8,6.60292]
[1743237206297,1.99906458,1886.9,1886.8,6.65591452]
[1743237206500,1.99906458,1886.9,1886.8,7.79852745]
[1743237206895,3.33131137,1886.9,1886.8,7.79852745]
[1743237207106,6.33131137,1887.0,1886.9,5.84969]
[1743237208826,0.40296318,1887.2,1886.9,5.84969]
[1743237209131,3.33131137,1887.3,1887.2,5.84885]
[1743237209420,6.33131137,1887.3,1887.2,5.84885]
[1743237210835,6.33131137,1887.3,1887.2,0.55]
[1743237211006,12.82071685,1887.3,1886.9,5.29969]
[1743237211207,3.33131137,1887.0,1886.9,5.84969]
[1743237211423,3.33131137,1887.0,1886.9,7.536973]
[1743237212131,3.33131137,1887.0,1886.9,2.237283]
[1743237212312,3.33131137,1887.0,1886.9,1.04733677]
[1743237212713,3.33131137,1887.0,1886.9,6.34702677]
[1743237212911,3.33131137,1887.0,1886.9,1.04733677]
[1743237214339,3.33131137,1887.0,1886.7,0.55]
[1743237214508,3.33131137,1886.8,1886.7,5.8502]
[1743237215121,3.33131137,1886.8,1886.7,6.93036231]
[1743237216945,3.33131137,1886.8,1886.7,1.08016231]
[1743237217241,4.14911137,1886.8,1886.7,1.08016231]
[1743237217405,3.33131137,1886.8,1886.7,1.08016231]
[1743237217611,6.33131137,1886.8,1886.7,1.08016231]
[1743237219339,6.33131137,1886.8,1886.7,6.38041231]
[1743237219649,6.73349341,1886.8,1886.7,6.38041231]
[1743237219953,6.73349341,1886.8,1886.7,1.08016231]
[1743237221453,6.73349341,1886.8,1886.7,6.38041231]
[1743237222756,6.73349341,1886.8,1886.7,1.08016231]
[1743237224332,6.73349341,1886.8,1886.4,34.11162]
[1743237224333,3.8178,1886.6,1886.4,28.051]
[1743237224533,12.44968137,1886.6,1886.4,28.051]
[1743237225459,12.44968137,1886.6,1886.5,1.0670662]
[1743237225866,7.14911137,1886.6,1886.5,1.0670662]
[1743237226764,6.33131137,1886.6,1886.5,1.0670662]
[1743237227379,3.33131137,1886.6,1886.5,6.9177262]
[1743237227531,3.33131137,1886.6,1886.5,10.94469682]
[1743237227927,3.33131137,1886.6,1886.5,11.70429682]
[1743237229070,6.33131137,1886.7,1886.6,5.85033]
[1743237232672,6.33131137,1886.7,1886.6,6.60953]
[1743237233981,3.33131137,1886.7,1886.6,6.60953]
[1743237234147,3.33131137,1886.7,1886.6,8.30995268]
[1743237235348,0.39825829,1886.8,1886.6,8.30995268]
[1743237235679,3.0,1887.0,1886.7,5.85025]
[1743237236176,8.29944,1887.0,1886.7,0.55]
[1743237236977,6.33131137,1886.8,1886.7,0.55]
[1743237238182,6.7328893,1886.8,1886.7,0.55]
[1743237239355,6.7328893,1886.8,1886.7,6.435283]
[1743237241762,6.7328893,1886.8,1886.7,1.135033]
[1743237241966,6.7328893,1886.8,1886.7,0.55]
[1743237242565,6.7328893,1886.8,1886.7,5.85025]
[1743237244502,3.0,1886.8,1886.7,6.67934901]
[1743237244803,3.0,1886.8,1886.7,6.67934651]
[1743237245096,6.33131137,1887.0,1886.9,5.29969]
[1743237245297,3.33131137,1887.0,1886.9,5.84969]
[1743237245472,3.33131137,1887.0,1886.9,7.740747]
[1743237245871,3.33131137,1887.2,1887.1,5.84912]
[1743237246169,6.33131137,1887.2,1887.1,5.84912]
[1743237246768,6.33131137,1887.2,1887.1,0.55]
[1743237247683,3.0,1887.1,1886.9,7.190747]
[1743237248005,3.33131137,1887.0,1886.9,5.84969]
[1743237248210,3.33131137,1887.0,1886.9,7.461656]
[1743237249210,3.73383628,1887.0,1886.9,7.461656]
[1743237249608,3.0,1887.3,1887.0,5.84935]
[1743237249908,3.33131137,1887.1,1887.0,5.84935]
[1743237252489,3.33131137,1887.1,1887.0,6.62545]
[1743237252689,3.33131137,1887.1,1887.0,8.08801989]
[1743237254580,6.33131137,1887.3,1887.2,5.84885]
[1743237254890,6.33131137,1887.4,1887.3,5.84857]
[1743237256215,3.33131137,1887.4,1887.3,5.84857]
[1743237256416,3.33131137,1887.4,1887.3,7.739212]
[1743237256589,3.73638729,1887.4,1887.3,7.739212]
[1743237257894,3.33131137,1887.5,1887.4,5.29829]
[1743237258187,3.33131137,1887.6,1887.5,5.84801]
[1743237260015,4.09911137,1887.6,1887.4,5.29819]
[1743237260318,3.33131137,1887.5,1887.4,5.84819]
[1743237260817,3.33131137,1887.5,1887.4,7.18282688]
[1743237262920,3.33131137,1887.5,1887.4,1.33463688]
[1743237263128,7.09911137,1887.5,1887.3,6.38343684]
[1743237263299,3.33131137,1887.4,1887.3,6.93343684]
[1743237264217,3.33131137,1887.5,1887.4,5.84829]
[1743237267126,3.33131137,1887.5,1887.3,1.08487684]
[1743237267319,3.33131137,1887.4,1887.3,1.63487684]
[1743237267500,3.33131137,1887.4,1887.3,6.93344684]
[1743237270105,3.33131137,1887.4,1887.3,8.15667352]
[1743237271105,3.7678,1887.7,1887.3,8.15667352]
[1743237271308,3.33131137,1887.5,1887.4,5.84807]
[1743237276335,7.12951137,1887.5,1887.3,1.08487684]
[1743237276535,7.12951137,1887.5,1887.3,5.29854]
[1743237276744,7.12951137,1887.5,1887.3,5.883394]
[1743237277044,6.33131137,1887.5,1887.3,5.883394]
[1743237280451,3.33131137,1887.5,1887.4,5.84829]
[1743237293332,3.33131137,1887.5,1887.4,0.55]
[1743237294923,1.99794152,1887.5,1887.4,0.55]
[1743237298531,1.99794152,1887.5,1887.4,5.84829]
[1743237299229,1.99794152,1887.5,1887.4,0.55]
[1743237301807,2.79484152,1887.5,1887.3,0.55]
[1743237302006,1.99794152,1887.4,1887.3,0.55]
[1743237302617,1.99794152,1887.4,1887.3,5.84857]
[1743237303412,1.99794152,1887.4,1887.3,9.87350173]
[1743237306132,1.99794152,1887.4,1887.3,0.55]
[1743237306656,1.99794152,1887.4,1887.3,5.84857]
[1743237306816,1.99794152,1887.4,1887.3,0.55]
[1743237307134,2.79484152,1887.4,1887.2,29.10193726]
[1743237307304,1.99794152,1887.3,1887.2,29.10193726]
[1743237307706,1.99794152,1887.3,1887.2,34.40078726]
[1743237308032,1.99794152,1887.3,1887.2,38.92077899]
[1743237309333,1.99794152,1887.3,1887.2,34.95078726]
[1743237310244,1.99794152,1887.3,1887.2,29.65193726]
[1743237310941,2.79484152,1887.3,1887.2,29.10193726]
[1743237311243,2.79484152,1887.3,1887.2,28.037]
[1743237311912,5.79484152,1887.3,1887.2,28.037]
[1743237312111,6.19915525,1887.3,1887.2,28.037]
[1743237313656,11.49772525,1887.3,1887.2,28.037]
[1743237314948,12.83108956,1887.3,1887.2,28.037]
[1743237315147,0.7969,1887.0,1886.6,0.784]
[1743237315349,3.33130583,1886.7,1886.6,5.30053]
[1743237315549,3.33130583,1886.7,1886.5,38.64142]
[1743237315719,3.33130583,1886.7,1886.6,4.93460882]
[1743237316119,3.33130583,1886.7,1886.6,10.78514882]
[1743237318034,3.33130583,1886.9,1886.8,5.84978]
[1743237318235,6.33130583,1887.0,1886.9,5.29965]
[1743237319142,6.33130583,1887.0,1886.9,6.964593]
[1743237319355,3.33130583,1887.1,1887.0,5.84941]
[1743237320047,3.33130583,1887.2,1887.1,5.84913]
[1743237320251,3.0,1887.2,1887.1,5.84913]
[1743237322549,6.33130583,1887.2,1887.1,5.84913]
[1743237322851,6.33130583,1887.2,1887.1,7.044914]
[1743237324953,6.06,1887.7,1887.3,6.65761]
[1743237325133,3.33130583,1887.5,1887.4,5.84818]
[1743237325329,3.33130583,1887.6,1887.5,5.29776]
[1743237325522,3.33130583,1887.6,1887.5,6.962354]
[1743237325723,6.06,1887.8,1887.7,0.55]
[1743237326050,3.33130583,1887.8,1887.7,0.55]
[1743237327653,3.73268611,1887.8,1887.7,0.55]
[1743237328559,3.73268611,1887.8,1887.7,5.84745]
[1743237329460,3.73268611,1887.8,1887.7,0.55]
[1743237329759,3.73268611,1887.8,1887.7,1.05207812]
[1743237330455,3.73268611,1887.8,1887.7,6.34952812]
[1743237330660,3.73268611,1887.8,1887.7,7.51423993]
[1743237330967,3.73268611,1887.8,1887.7,2.21678993]
[1743237331960,3.73268611,1887.8,1887.7,8.06423993]
[1743237333344,3.73268611,1887.8,1887.7,2.76678993]
[1743237333860,3.73268611,1887.8,1887.7,8.06423993]
[1743237334031,3.73268611,1887.8,1887.7,1.16471181]
[1743237334240,3.73268611,1887.8,1887.6,10.59507]
[1743237334456,3.73268611,1887.8,1887.6,5.84748]
[1743237334457,3.33130583,1887.7,1887.6,5.84748]
[1743237335569,3.827,1888.0,1887.7,5.84745]
[1743237336166,4.23033329,1888.0,1887.7,5.84745]
[1743237336758,3.33130583,1887.8,1887.7,5.84745]
[1743237336939,3.33130583,1887.8,1887.7,7.06620614]
[1743237338839,0.7874,1887.6,1887.4,28.039]
[1743237339061,3.33130583,1887.5,1887.4,28.039]
[1743237340076,0.7874,1887.4,1887.2,1.04188792]
[1743237340239,12.39130583,1887.5,1886.8,5.29984]
[1743237340240,0.7874,1887.1,1886.8,5.29984]
[1743237340435,3.33130583,1887.0,1886.8,8.713444]
[1743237340635,3.33130583,1887.0,1886.9,0.55]
[1743237340842,3.33130583,1887.0,1886.8,8.713444]
[1743237341037,3.33130583,1887.0,1886.9,0.55]
[1743237341269,3.33130583,1887.0,1886.9,5.84969]
[1743237341459,6.33130583,1887.1,1887.0,5.29919]
[1743237341661,6.33130583,1887.1,1887.0,6.09939]
[1743237342290,6.33130583,1887.1,1887.0,0.55]
[1743237343269,6.33130583,1887.1,1886.9,0.55]
[1743237343784,0.7874,1886.9,1886.8,1.0431624]
[1743237343991,4.11870583,1886.9,1886.8,1.0431624]
[1743237344155,4.11870583,1886.9,1886.8,1.5931624]
[1743237345692,3.33130583,1886.9,1886.8,1.5931624]
[1743237345879,3.33130583,1886.9,1886.8,6.8931324]
[1743237346195,3.33130583,1886.9,1886.8,1.5931624]
[1743237346688,3.72170674,1886.9,1886.8,1.5931624]
[1743237347262,3.72170674,1886.9,1886.8,0.55]
[1743237347462,3.72170674,1886.9,1886.7,28.036]
[1743237347463,0.7751,1886.8,1886.7,28.036]
[1743237347664,4.10640583,1886.8,1886.7,28.036]
[1743237350297,3.33130583,1886.8,1886.7,33.33625]
[1743237351093,3.33130583,1886.8,1886.7,28.036]
[1743237352196,12.40637583,1886.8,1886.7,28.036]
[1743237352502,8.9160625,1886.8,1886.7,28.036]
[1743237352697,7.10640583,1886.8,1886.7,28.036]
[1743237353809,12.40637583,1886.8,1886.7,28.036]
[1743237356307,0.8045,1886.5,1886.3,0.55]
[1743237356507,0.8045,1886.5,1886.2,5.30145]
[1743237356508,3.33130583,1886.4,1886.2,5.30145]
[1743237356809,3.33130583,1886.3,1886.2,5.85145]
[1743237357015,3.33130583,1886.3,1886.2,5.30145]
[1743237357308,3.33130583,1886.3,1886.2,5.85145]
[1743237357897,6.33130583,1886.6,1886.4,5.30088]
[1743237358086,3.0,1886.6,1886.5,5.85082]
[1743237358998,6.33130583,1886.6,1886.5,5.85082]
[1743237360011,6.33130583,1886.6,1886.5,0.55]
[1743237360180,6.33130583,1886.6,1886.3,5.30137]
[1743237360376,3.33130583,1886.4,1886.3,0.55]
[1743237360581,3.33130583,1886.4,1886.3,1.58931986]
[1743237361013,3.33130583,1886.4,1886.3,0.55]
[1743237361309,3.33130583,1886.4,1886.3,5.85138]
[1743237361682,3.73719052,1886.4,1886.3,5.85138]
[1743237362414,3.73719052,1886.4,1886.2,33.34944]
[1743237362609,3.33130583,1886.3,1886.2,33.34944]
[1743237364423,3.33130583,1886.3,1886.2,33.89944]
[1743237366419,3.33130583,1886.3,1886.2,34.71214]
[1743237366620,3.33130583,1886.3,1886.2,38.81995507]
[1743237366914,0.7626,1886.7,1886.5,5.3006]
[1743237367091,6.33130583,1886.6,1886.5,6.1133]
[1743237367296,6.33130583,1886.6,1886.5,6.6633]
[1743237368325,3.33130583,1886.7,1886.5,6.6633]
[1743237368509,3.33130583,1886.8,1886.7,5.85025]
[1743237372407,3.33130583,1886.8,1886.7,6.66295]
[1743237372727,3.39040091,1886.9,1886.8,5.84997]
[1743237372903,6.33130583,1886.9,1886.8,5.84997]
[1743237374836,9.39130583,1887.1,1886.9,5.29969]
[1743237375039,12.39130583,1887.1,1887.0,6.08371]
[1743237375226,0.7583,1887.4,1887.2,5.29873]
[1743237375420,6.06,1887.5,1887.3,5.29852]
[1743237375612,3.33130583,1887.4,1887.3,5.29852]
[1743237375809,6.33130583,1887.4,1887.3,5.29852]
[1743237376139,3.33130583,1887.4,1887.3,5.29852]
[1743237376350,3.33130583,1887.4,1887.2,6.37203913]
[1743237376522,3.33130583,1887.3,1887.2,6.92203913]
[1743237378245,3.33130583,1887.3,1887.2,1.62330913]
[1743237378423,6.74207641,1887.3,1887.0,0.55]
[1743237378625,3.33130583,1887.1,1887.0,0.55]
[1743237379123,3.33130583,1887.1,1887.0,5.84941]
[1743237379713,3.33130583,1887.1,1887.0,6.91045064]
[1743237381464,3.33130583,1887.2,1887.1,5.29913]
[1743237381666,6.33130583,1887.3,1887.2,5.84885]
[1743237383573,6.33130583,1887.3,1887.2,0.55]
[1743237384297,6.33130583,1887.3,1887.2,5.84885]
[1743237384973,6.33130583,1887.3,1887.2,0.55]
[1743237385342,6.33130583,1887.3,1887.2,5.84885]
[1743237385547,6.33130583,1887.3,1887.2,0.55]
[1743237386177,6.33130583,1887.3,1887.2,5.84885]
[1743237386878,3.33130583,1887.3,1887.2,7.045185]
[1743237392078,3.33130583,1887.4,1887.3,5.84852]
[1743237392282,3.33130583,1887.4,1887.3,6.61562]
[1743237393684,3.33130583,1887.4,1887.3,5.84852]
[1743237395482,3.0,1887.7,1887.4,1.3171]
[1743237395673,3.33130583,1887.6,1887.5,5.84801]
[1743237395872,3.33130583,1887.6,1887.5,7.03934]
[1743237398280,3.23130583,1887.6,1887.5,7.03934]
[1743237400557,3.73006783,1887.7,1887.6,5.29773]
[1743237400856,3.33130583,1887.7,1887.6,5.29773]
[1743237401057,3.33130583,1887.7,1887.6,6.531437]
[1743237402060,3.33130583,1887.8,1887.7,5.8474]
[1743237402259,0.7761,1888.2,1887.9,5.29661]
[1743237402576,6.33130583,1888.0,1887.9,5.84661]
[1743237403716,3.7761,1888.2,1888.1,5.29632]
[1743237403861,7.10740583,1888.2,1888.0,5.29657]
[1743237404360,7.10740583,1888.2,1888.0,5.2964]
[1743237404559,7.10740583,1888.2,1888.1,5.29632]
[1743237405294,7.10740583,1888.2,1888.0,5.84655]
[1743237405459,3.33130583,1888.1,1888.0,11.14294]
[1743237405791,3.73940108,1888.1,1888.0,12.3686708]
[1743237405997,3.73940108,1888.1,1888.0,7.0721208]
[1743237408694,3.73940108,1888.1,1888.0,0.55]
[1743237410384,3.73940108,1888.1,1888.0,5.84661]
[1743237411227,6.73940108,1888.1,1888.0,6.61841]
[1743237411773,6.73940108,1888.1,1888.0,5.84661]
[1743237414915,6.33130583,1888.1,1888.0,5.84661]
[1743237416619,6.33130583,1888.1,1888.0,6.93488573]
[1743237420687,6.33130583,1888.1,1888.0,1.63827573]
[1743237421026,7.83531579,1888.1,1887.8,5.29716]
[1743237421202,3.33130583,1887.9,1887.8,5.29716]
[1743237421410,3.33130583,1887.9,1887.8,5.84716]
[1743237421814,3.33130583,1887.9,1887.8,6.90432394]
[1743237423290,7.11190583,1887.9,1887.8,1.05716394]
[1743237423491,12.74192641,1887.9,1887.6,33.33073]
[1743237423695,3.33130583,1887.7,1887.6,34.93748603]
[1743237423890,3.33130583,1887.7,1887.6,34.38748603]
[1743237424091,3.33130583,1887.7,1887.6,29.08975603]
[1743237424296,3.33130583,1887.7,1887.6,29.63975603]
[1743237424925,6.33130583,1887.7,1887.6,28.033]
[1743237425102,13.57220641,1887.7,1887.6,28.033]
[1743237425507,18.86989641,1887.7,1887.2,5.29869]
[1743237425712,18.86989641,1887.7,1887.3,0.55]
[1743237426023,3.33130583,1887.4,1887.2,6.35256903]
[1743237426228,3.33130583,1887.4,1887.3,0.55]
[1743237426529,3.33130583,1887.4,1887.3,5.84857]
[1743237426731,3.33130583,1887.4,1887.3,0.55]
[1743237427102,4.11190583,1887.4,1887.2,1.05388903]
[1743237427308,4.11190583,1887.4,1887.2,6.35273903]
[1743237428911,4.11190583,1887.4,1887.2,1.05388903]
[1743237429435,4.11190583,1887.4,1887.2,6.35260903]
[1743237430134,4.11190583,1887.4,1887.2,1.05388903]
[1743237430864,4.11190583,1887.4,1887.2,6.35270903]
[1743237431150,3.33130583,1887.3,1887.2,1.05388903]
[1743237432738,3.33130583,1887.3,1887.2,7.04302793]
[1743237432941,3.33130583,1887.3,1887.2,1.74417793]
[1743237433237,3.33130583,1887.3,1887.2,6.90273903]
[1743237435330,3.33130583,1887.4,1887.3,6.65067]
[1743237437742,3.33130583,1887.4,1887.3,5.84857]
[1743237437948,3.33130583,1887.4,1887.3,0.55]
[1743237438947,3.33130583,1887.4,1887.3,5.84857]
[1743237442447,3.33130583,1887.4,1887.3,7.0686989]
[1743237442643,6.33130583,1887.6,1887.5,5.84801]
[1743237442851,6.8694,1888.1,1887.8,5.29716]
[1743237443157,3.33130583,1888.0,1887.9,5.29688]
[1743237443852,6.33130583,1888.0,1887.8,5.29716]
[1743237444045,3.33130583,1887.9,1887.8,5.84716]
[1743237445157,3.33130583,1887.9,1887.8,6.88656386]
[1743237445542,3.33130583,1888.0,1887.9,5.29689]
[1743237445744,3.33130583,1888.0,1887.9,6.09959]
[1743237446278,6.06,1888.1,1888.0,5.84661]
[1743237446432,9.39130583,1888.1,1888.0,5.84661]
[1743237447326,9.39130583,1888.1,1888.0,0.55]
[1743237448443,9.39130583,1888.1,1888.0,5.84661]
[1743237448639,9.39130583,1888.1,1887.9,5.29689]
[1743237448829,3.33130583,1888.0,1887.9,5.84689]
[1743237449940,3.33130583,1888.0,1887.8,11.63356386]
[1743237450141,3.33130583,1887.9,1887.8,12.18356386]
[1743237450350,4.53532735,1887.9,1887.8,1.03940386]
[1743237450547,3.72592735,1887.9,1887.8,6.33657386]
[1743237451252,3.33130583,1887.9,1887.8,7.68927386]
[1743237451854,3.33130583,1888.0,1887.9,5.84668]
[1743237453881,3.72062962,1888.0,1887.9,5.84668]
[1743237454080,3.72062962,1888.0,1887.9,1.84859539]
[1743237454277,3.72062962,1888.0,1887.9,5.84689]
[1743237454435,3.72062962,1888.0,1887.9,0.55]
[1743237454954,3.72062962,1888.0,1887.9,5.84689]
[1743237457270,3.33130583,1888.4,1888.3,5.29562]
[1743237457639,6.33130583,1888.4,1888.3,5.29562]
[1743237458273,6.33130583,1888.4,1888.3,5.84562]
[1743237459091,3.33130583,1888.4,1888.3,5.84562]
[1743237460191,3.72701726,1888.4,1888.3,5.84562]
[1743237461478,3.72701726,1888.4,1888.3,6.959777]
[1743237461787,0.39571143,1888.4,1888.3,6.959777]
[1743237461939,6.33130583,1888.5,1888.4,5.29548]
[1743237462676,6.33130583,1888.5,1888.4,5.84548]
[1743237463255,3.0,1888.5,1888.4,5.84548]
[1743237463454,3.0,1888.5,1888.4,7.0710057]
[1743237463654,6.73889331,1888.5,1888.4,7.0710057]
[1743237463868,3.33130583,1888.5,1888.4,7.8857057]
[1743237465376,3.33130583,1888.5,1888.4,7.0710057]
[1743237465578,4.09930583,1889.3,1888.8,0.8147]
[1743237465878,3.33130583,1889.3,1889.0,5.29356]
[1743237466047,3.33130583,1889.3,1889.1,5.29348]
[1743237466048,3.33130583,1889.2,1889.1,5.29348]
[1743237466244,3.73196615,1889.3,1889.2,5.29324]
[1743237466481,3.33130583,1889.3,1889.2,5.29324]
[1743237466677,6.33130583,1889.3,1889.1,5.84332]
[1743237466871,3.33130583,1889.2,1889.1,5.84332]
[1743237467081,3.33130583,1889.2,1888.9,5.29405]
[1743237467261,0.39890863,1889.3,1888.9,10.58797]
[1743237467262,3.33130583,1889.1,1888.9,10.58797]
[1743237467577,3.33130583,1889.1,1888.9,6.489187]
[1743237467777,3.33130583,1889.1,1888.9,5.29392]
[1743237467955,5.69204863,1889.3,1888.8,5.29416]
[1743237468155,3.33130583,1889.2,1889.1,5.29352]
[1743237468361,3.33130583,1889.2,1889.0,6.04426]
[1743237468562,3.33130583,1889.1,1889.0,0.55]
[1743237468778,3.33130583,1889.1,1889.0,1.24064463]
[1743237469181,3.33130583,1889.1,1889.0,0.69064463]
[1743237469376,3.33130583,1889.1,1888.9,1.06237625]
[1743237469578,5.29315,1889.3,1888.9,1.61237625]
[1743237469579,3.33130583,1889.0,1888.9,1.61237625]
[1743237470401,3.33130583,1889.0,1888.9,1.06237625]
[1743237470572,3.33130583,1889.0,1888.7,5.29458]
[1743237470758,3.33130583,1888.9,1888.7,5.29458]
[1743237470958,3.33130583,1888.9,1888.7,6.395308]
[1743237471185,3.33130583,1888.9,1888.8,5.84436]
[1743237471359,3.33130583,1889.0,1888.8,5.84436]
[1743237471561,3.33130583,1889.0,1888.9,0.55]
[1743237473794,3.33130583,1889.0,1888.8,1.05950775]
[1743237473994,8.62553583,1888.9,1888.5,5.29507]
[1743237474174,3.33130583,1888.6,1888.5,5.29507]